Workbook

Sheet Instructions
A1: CHANGES FROM CAPITAL FORECAST TEMPLATE INSTRUCTIONS
A3: This Excel template creates a high level summary in a standard format for presentation purposes. This information is required to ensure a consistent reporting format.
A5: GENERAL:
B6: u | C6: This summarizes the annual changes by project in the Capital Budget submission for 2016 to 2020 with the same period in the 2015 Adopted Capital Budget.
B7: u | C7: If starting from scratch, type the department name into the yellow cell below, the department name will automatically be copied to the template tab.
B8: u | C8: DEPARTMENT NAME
B9: u | C9: Data entry cells have been highlighted in yellow for ease of data entry. Please do not enter any information into cells that are not yellow.
B10: u | C10: Description cells are set to wrap, but row heights may need to be manually adjusted.
B11: u | C11: Add or remove rows as needed for additions and deductions.
B12: u | C12: Numbers to be rounded to thousands.
B13: u | C13: The template will automatically calculate the submission based on "net change" you've entered.
B14: u | C14: Assign an explanation number to all projects that have changes for 2016 to 2020. Leave the explanation number blank if there is no variance.
B15: u | C15: Use the separate Word template (2016 Changes from Capital Forecast - Narrative) to explain any variances.
A18: PRINTING:
B19: u | C19: Print setups have been set up, minimal change should be required (i.e page breaks if needed).
A21: QUESTIONS:
C22: Please call your Financial Planning & Review Analyst with any questions related to this template.
C23: Grant Heather - 204-986-4325
C24: Knight Morton - 204-986-2283
C25: Ryan Marsh - 204-986-7525
C26: Kerry Zakowich - 204-986-2128

Sheet Sample
B5: CAPITAL PROJECTS SUMMARY
B6: CHANGES FROM CAPITAL FORECAST | D6: 2015 | E6: =+D6+1 -> 2016 | F6: =+$E$6 -> 2016 | G6: =+$E$6 -> 2016 | H6: =+G6+1 -> 2017 | I6: =+$H$6 -> 2017 | J6: =+$H$6 -> 2017 | K6: =+$J$6+1 -> 2018 | L6: =+$J$6+1 -> 2018 | M6: =+$J$6+1 -> 2018 | N6: =+$M$6+1 -> 2019 | O6: =+$M$6+1 -> 2019 | P6: =+$M$6+1 -> 2019 | Q6: =+$P$6+1 -> 2020 | R6: =+$P$6+1 -> 2020 | S6: =+$P$6+1 -> 2020 | T6: =+$S$6+1 -> 2021 | U6: 2016-2020 | V6: =+U6 -> 2016-2020 | W6: =+V6 -> 2016-2020
B7: (in Thousands of $) | C7: EXPL. | D7: ADOPTED | E7: FORECAST | F7: TOTAL | G7: SUBMISSION | H7: FORECAST | I7: TOTAL | J7: SUBMISSION | K7: FORECAST | L7: TOTAL | M7: SUBMISSION | N7: FORECAST | O7: TOTAL | P7: SUBMISSION | Q7: FORECAST | R7: TOTAL | S7: SUBMISSION | T7: SUBMISSION | U7: FORECAST | V7: TOTAL | W7: SUBMISSION
C8: NO. | D8: BUDGET | E8: ADOPTED | F8: CHANGES | H8: ADOPTED | I8: CHANGES | K8: ADOPTED | L8: CHANGES | N8: ADOPTED | O8: CHANGES | Q8: ADOPTED | R8: CHANGES | U8: 5 YEAR | V8: CHANGES | W8: 5 YEAR
E9: BY | H9: BY | K9: BY | N9: BY | Q9: BY | U9: TOTAL | W9: TOTAL
E10: COUNCIL | H10: COUNCIL | K10: COUNCIL | N10: COUNCIL | Q10: COUNCIL | Y10: CHECK
B11: CAPITAL PROJECTS LISTING
B12: =+Instructions!C8 -> DEPARTMENT NAME
B13: Developer Payback - ABC Street | C13: 1 | D13: 1,000 | E13: 1,000 | F13: 1,000 | G13: =+E13+F13 -> 2,000 | H13: 0 | J13: =+H13+I13 -> 0 | K13: 2,000 | M13: =+K13+L13 -> 2,000 | P13: =+N13+O13 -> 0 | S13: =+Q13+R13 -> 0 | U13: =+E13+H13+K13+N13+Q13 -> 3,000 | V13: =F13+I13+L13+O13+R13 -> 1,000 | W13: =+G13+J13+M13+P13+S13 -> 4,000 | Y13: =+W13-U13-V13 -> 0
B14: Regional and Local Streets | C14: 2 | D14: 1,000 | E14: 5,000 | F14: (1,200) | G14: =+E14+F14 -> 3,800 | H14: 0 | J14: =+H14+I14 -> 0 | K14: 2,500 | L14: 200 | M14: =+K14+L14 -> 2,700 | P14: =+N14+O14 -> 0 | Q14: 2,000 | S14: =+Q14+R14 -> 2,000 | U14: =+E14+H14+K14+N14+Q14 -> 9,500 | V14: =F14+I14+L14+O14+R14 -> (1,000) | W14: =+G14+J14+M14+P14+S14 -> 8,500 | Y14: =+W14-U14-V14 -> 0
B15: Bridge XX | C15: 3 | D15: 1,000 | E15: 1,300 | F15: 1,500 | G15: =+E15+F15 -> 2,800 | J15: =+H15+I15 -> 0 | K15: 7,000 | L15: 0 | M15: =+K15+L15 -> 7,000 | N15: 6,000 | P15: =+N15+O15 -> 6,000 | R15: 0 | S15: =+Q15+R15 -> 0 | T15: 0 | U15: =+E15+H15+K15+N15+Q15 -> 14,300 | V15: =F15+I15+L15+O15+R15 -> 1,500 | W15: =+G15+J15+M15+P15+S15 -> 15,800 | Y15: =+W15-U15-V15 -> 0
B16: Parks | D16: 1,000 | E16: 1,000 | G16: =+E16+F16 -> 1,000 | U16: =+E16+H16+K16+N16+Q16 -> 1,000 | V16: =F16+I16+L16+O16+R16 -> 0 | W16: =+G16+J16+M16+P16+S16 -> 1,000
B17: Total Department Name | D17: =SUM(D13:D16) -> 4,000 | E17: 8,300 | F17: 1,300 | G17: 9,600 | H17: 0 | I17: 0 | J17: 0 | K17: 11,500 | L17: 200 | M17: 11,700 | N17: 6,000 | O17: 0 | P17: 6,000 | Q17: 2,000 | R17: 0 | S17: 2,000 | T17: 0 | U17: =SUM(U13:U16) -> 27,800 | V17: =SUM(V13:V16) -> 1,500 | W17: =SUM(W13:W16) -> 29,300 | Y17: =+W17-U17-V17 -> 0

Sheet Template
B1: CHANGES FROM CAPITAL FORECAST | D1: 2015 | E1: =+D1+1 -> 2016 | F1: =+$E$1 -> 2016 | G1: =+$E$1 -> 2016 | H1: =+G1+1 -> 2017 | I1: =+$H$1 -> 2017 | J1: =+$H$1 -> 2017 | K1: =+$J$1+1 -> 2018 | L1: =+$J$1+1 -> 2018 | M1: =+$J$1+1 -> 2018 | N1: =+$M$1+1 -> 2019 | O1: =+$M$1+1 -> 2019 | P1: =+$M$1+1 -> 2019 | Q1: =+$P$1+1 -> 2020 | R1: =+$P$1+1 -> 2020 | S1: =+$P$1+1 -> 2020 | T1: =+$S$1+1 -> 2021 | U1: 2016-2020 | V1: =U1 -> 2016-2020 | W1: =+V1 -> 2016-2020
B2: (in Thousands of $) | C2: EXPL. | D2: ADOPTED | E2: FORECAST | F2: TOTAL | G2: SUBMISSION | H2: FORECAST | I2: TOTAL | J2: SUBMISSION | K2: FORECAST | L2: TOTAL | M2: SUBMISSION | N2: FORECAST | O2: TOTAL | P2: SUBMISSION | Q2: FORECAST | R2: TOTAL | S2: SUBMISSION | T2: SUBMISSION | U2: FORECAST | V2: TOTAL | W2: SUBMISSION
C3: NO. | D3: BUDGET | E3: ADOPTED | F3: CHANGES | H3: ADOPTED | I3: CHANGES | K3: ADOPTED | L3: CHANGES | N3: ADOPTED | O3: CHANGES | Q3: ADOPTED | R3: CHANGES | U3: 5 YEAR | V3: CHANGES | W3: 5 YEAR
E4: BY | H4: BY | K4: BY | N4: BY | Q4: BY | U4: TOTAL | W4: TOTAL
E5: COUNCIL | H5: COUNCIL | K5: COUNCIL | N5: COUNCIL | Q5: COUNCIL | Y5: CHECK
B6: CAPITAL PROJECTS LISTING
B7: =+Instructions!C8 -> DEPARTMENT NAME
B8: Project 1 | G8: =+E8+F8 -> 0 | H8: 0 | J8: =+H8+I8 -> 0 | M8: =+K8+L8 -> 0 | P8: =+N8+O8 -> 0 | S8: =+Q8+R8 -> 0 | U8: =+E8+H8+K8+N8+Q8 -> 0 | V8: =F8+I8+L8+O8+R8 -> 0 | W8: =+G8+J8+M8+P8+S8 -> 0 | Y8: =+W8-U8-V8 -> 0
B9: Project 2 | G9: =+E9+F9 -> 0 | H9: 0 | J9: =+H9+I9 -> 0 | M9: =+K9+L9 -> 0 | P9: =+N9+O9 -> 0 | S9: =+Q9+R9 -> 0 | U9: =+E9+H9+K9+N9+Q9 -> 0 | V9: =F9+I9+L9+O9+R9 -> 0 | W9: =+G9+J9+M9+P9+S9 -> 0 | Y9: =+W9-U9-V9 -> 0
B10: Project 3 | G10: =+E10+F10 -> 0 | J10: =+H10+I10 -> 0 | M10: =+K10+L10 -> 0 | P10: =+N10+O10 -> 0 | R10: 0 | S10: =+Q10+R10 -> 0 | T10: 0 | U10: =+E10+H10+K10+N10+Q10 -> 0 | V10: =F10+I10+L10+O10+R10 -> 0 | W10: =+G10+J10+M10+P10+S10 -> 0 | Y10: =+W10-U10-V10 -> 0
B11: Total Department Name | D11: =SUM(D8:D10) -> 0 | E11: =SUM(E8:E10) -> 0 | F11: 0 | G11: 0 | H11: 0 | I11: 0 | J11: 0 | K11: 0 | L11: 0 | M11: 0 | N11: 0 | O11: 0 | P11: 0 | Q11: 0 | R11: 0 | S11: 0 | T11: 0 | U11: 0 | V11: 0 | W11: 0 | Y11: =+W11-U11-V11 -> 0
